Workbook

Sheet data
C1: التاريخ
C2: =NOW() -> 2019-12-25T18:42:26
A5: رقم الشيت | B5: رقم الخلية | C5: رقم العميل | D5: التاريخ | E5: البيان | F5: المبلغ عليه | G5: المبلغ له | H5: ملاحضه1 | I5: ملاحضة2 | J5: ملاحضه3 | K5: ملاحضة4

Sheet ا
B3: اسم العميل | C3: التاريخ | D3: البيان | E3: المبلغ عليه | F3: المبلغ له | G3: ملاحضه1 | H3: ملاحضه2
B12: اسم العميل | C12: التاريخ | D12: البيان | E12: المبلغ عليه | F12: المبلغ له | G12: ملاحضه1 | H12: ملاحضه2

Sheet 0
A1: =L1-M1 -> 0 | L1: =SUM(D4:D500000) -> 0 | M1: =SUM(E4:E500000) -> 0
A3: حساب | B3: التاريخ | C3: البيان | D3: المبلغ عليه | E3: المبلغ له | F3: ملاحضه | K3: المتبقي
A4: 0 | K4: =D4-E4 -> 0
K5: =K4+D5-E5 -> 0
... 1 more rows

Sheet الدين العام
A1: =L1-M1 -> 1024500 | L1: =SUM(D4:D500000) -> 2349000 | M1: =SUM(E4:E500000) -> 1324500
A3: حساب | B3: التاريخ | C3: البيان | D3: المبلغ عليه | E3: المبلغ له | F3: ملاحضه | K3: المتبقي
A4: الدين العام | B4: 2019-11-30 | C4: مجاهد الشبار | D4: 20000 | E4: 20000 | K4: =D4-E4 -> 0
A5: الدين العام | B5: 2019-11-30 | C5: محمد عبدالهادي لكرد | D5: 3000 | E5: 3000 | K5: =K4+D5-E5 -> 0
A6: الدين العام | B6: 2019-12-01 | C6: خالد هادي عمر القشعوري | D6: 50000 | E6: 50000
A7: الدين العام | B7: 2019-12-03T08:43:30.220 | C7: صالح محمد فضل | D7: 4500 | E7: 4500
A8: الدين العام | B8: 2019-12-03T08:44:53.960 | C8: سالم احمد لذيل | D8: 10000 | E8: 10000
A9: الدين العام | B9: 2019-12-03T09:00:37.690 | C9: يوسف علي مهدي القشعوري | D9: 6000
A10: الدين العام | B10: 2019-12-03T09:01:30.200 | C10: صالح محمد الحيمر 00 | D10: 401000 | E10: 401000
A11: الدين العام | B11: 2019-12-03T10:08:45.200 | C11: فهد مهدي قسيبه | D11: 7000
A12: الدين العام | B12: 2019-12-03T15:47:35.400 | C12: سالمين محمد يسلم المعزف | D12: 10000 | E12: 10000
A13: الدين العام | B13: 2019-12-03T20:02:29.670 | C13: نوح سالم علي لهيف | D13: 20000 | E13: 20000
A14: الدين العام | B14: 2019-12-03T20:09:06.960 | C14: عبدالله عبدالكريم | D14: 8000
A15: الدين العام | B15: 2019-12-07T09:39:19.540 | C15: رامي المسلماني | D15: 18000
A16: الدين العام | B16: 2019-12-07T09:45:11.130 | C16: محسن احمد عبدالله بامعبد | D16: 20000 | E16: 20000
A17: الدين العام | B17: 2019-12-07T09:47:47.470 | C17: عوض الكعير | D17: 20000 | E17: 20000
A18: الدين العام | B18: 2019-12-08T10:24:06.560 | C18: يوسف بن فضل | D18: 15000 | E18: 15000
A19: الدين العام | B19: 2019-12-08T10:24:37.330 | C19: صلاح سعيد مهدي المعزف | D19: 10000
A20: الدين العام | B20: 2019-12-08T10:35:35.190 | C20: مروان يعقوب | D20: 40500 | E20: 40500
A21: الدين العام | B21: 2019-12-08T16:18:29.380 | C21: طارق العمودي 77 | D21: 4500
A22: الدين العام | B22: 2019-12-08T16:35:17.300 | C22: طارق العمودي 77 | D22: 500
A23: الدين العام | B23: 2019-12-09T20:41:13.360 | C23: احمد عبدالحافظ | D23: 7000 | E23: 7000
A24: الدين العام | B24: 2019-12-09T20:46:53.360 | C24: محمد عبدالهادي لكرد | D24: 52500 | E24: 52500
A25: الدين العام | B25: 2019-12-10T06:48:36.090 | C25: رداع العانسي حوله احمد زايد | D25: 50000 | E25: 50000
A26: الدين العام | B26: 2019-12-10T17:24:14.960 | C26: يوسف علي مهدي | D26: 6000 | E26: 6000
A27: الدين العام | B27: 2019-12-11T07:02:40.050 | C27: اديب الحجري | D27: 10000 | E27: 10000
A28: الدين العام | B28: 2019-12-11T07:03:26.990 | C28: احمد راشد لعور | D28: 39000 | E28: 39000
A29: الدين العام | B29: 2019-12-11T21:03:40.830 | C29: رايد خالد سالم القشعوري | D29: 20000 | E29: 20000
A30: الدين العام | B30: 2019-12-11T21:12:50.810 | C30: زكريا بامعبد | D30: 180000 | E30: 180000
A31: الدين العام | B31: 2019-12-11T21:13:30.640 | C31: انور محمد احمد المسلماني | D31: 20000 | E31: 20000
A32: الدين العام | B32: 2019-12-11T21:17:49.620 | C32: يوسف بن فضل | D32: 100500 | E32: 100500
C33: انور محمد لسود | D33: 7000
A34: الدين العام | B34: 2019-12-14T16:46:10.660 | C34: اصيل المضيع | D34: 5000
A35: الدين العام | B35: 2019-12-15T09:03:20.830 | C35: سالم محمد لسود | D35: 3000
A36: الدين العام | B36: 2019-12-15T09:04:05.160 | C36: سعيد مهدي المعزف | D36: 200500 | E36: 200500
A37: الدين العام | B37: 2019-12-16T09:35:13.690 | C37: عبدالغني قسيبه | D37: 106000
A38: الدين العام | B38: 2019-12-17T09:42:42.770 | C38: عوض المضيع | D38: 15000
A39: الدين العام | B39: 2019-12-18T11:45:16.630 | C39: مجاهد الشبار | D39: 5000
A40: الدين العام | B40: 2019-12-19T09:06:20.600 | C40: خالد هادي عمر القشعوري | D40: 25000 | E40: 25000
A41: الدين العام | B41: 2019-12-19T09:40:47.920 | C41: محمد عبدالهادي لكرد | D41: 38000
A42: الدين العام | B42: 2019-12-19T15:49:24.340 | C42: طارق العمودي 77 | D42: 5000
A43: الدين العام | B43: 2019-12-19T18:37:07.440 | C43: احمد راشد العضمي | D43: 10000
A44: الدين العام | B44: 2019-12-22T11:05:00.730 | C44: اديب الحجري | D44: 3000
A45: الدين العام | B45: 2019-12-23T08:39:29.900 | C45: محمد احمد علي سعيد لشاعر | D45: 15000
A46: الدين العام | B46: 2019-12-24T08:33:51.280 | C46: صالح مهدي المعزف 00 | D46: 10000
A47: الدين العام | B47: 2019-12-24T08:52:00.550 | C47: عبدالودود باحوارث | D47: 601000
A48: الدين العام | B48: 2019-12-24T08:52:53.130 | C48: رايد خالد سالم القشعوري | D48: 100000
A49: الدين العام | B49: 2019-12-25T08:34:20.260 | C49: باسرده | D49: 15500
A50: الدين العام | B50: 2019-12-25T08:40:39.230 | C50: يوسف يعقوب | D50: 20000
A51: الدين العام | B51: 2019-12-25T08:43:51.570 | C51: ابوبكر محسن عيدروس | D51: 12000
... 1 more rows

Sheet الحسابات
A1: اسم العميل | K1: =B1048576 -> 
A2: الدين العام | B2: ='الدين العام'!A1 -> 1024500
A3: المتاخر | B3: =#REF! -> 
A4: العمقي | B4: =#REF! -> 
A5: الناصر | B5: =#REF! -> 
A6: نجوم الثريا | B6: =#REF! -> 
A7: الصندوق | B7: =#REF! -> 
A8: رصيد بعد الجرد | B8: =#REF! -> 
A9: الفايده | B9: =#REF! -> 
A10: ابوماجد سعودي
A11: ابوماجد يمني | B11: =#REF! -> 
A12: غلام زيد | B12: ='غلام زيد '!A1 -> -816000
A13: علا المصاب | B13: =#REF! -> 
A14: علا المصاب خاص | B14: =#REF! -> 
A15: يوسف سعيد حرفوف | B15: ='يوسف سعيد حرفوف'!A1 -> 268050
A16: عادل غالب | B16: ='عادل غالب '!A1 -> -544000
A17: هادي يسلم | B17: ='هادي يسلم'!A1 -> 339200
A18: محمد احمد لخزع | B18: =#REF! -> 
A19: ناصر احمد لخزع | B19: =#REF! -> 
A20: ناصر محمد الردماني | B20: =#REF! -> 
A21: بسام عبدالنور سعيد | B21: =#REF! -> 
A22: نايف نجيب | B22: =#REF! -> 
A23: خالد النجار | B23: =#REF! -> 
A24: محمد اسماعيل | B24: =#REF! -> 
A25: عادل لكمح | B25: =#REF! -> 
A26: عارف محمد الردماني | B26: =#REF! -> 
A27: ناصر محمد سعيد العضمي | B27: =#REF! -> 
A28: علي محمد يسلم المعزف | B28: =#REF! -> 
A29: محسن العطل | B29: =#REF! -> 
A30: النيابه | B30: =#REF! -> 
A31: عصام محمد عوض | B31: =#REF! -> 
A32: فهمي المعزف | B32: =#REF! -> 
A33: محمد عبداللاه | B33: =#REF! -> 
A34: عثمان المصاب | B34: =#REF! -> 
A35: عارف المصاب | B35: =#REF! -> 
A36: ناصر باطيور | B36: =#REF! -> 
A37: فاروق | B37: =#REF! -> 
A39: جعفر | B39: =#REF! -> 
A40: نبيل المصاب | B40: =#REF! -> 
A41: ياسر الصغير | B41: =#REF! -> 
A42: احمد السيد | B42: =#REF! -> 
A43: فريد صلفوح | B43: =#REF! -> 
A44: عارف الصغير | B44: =#REF! -> 
A45: مصطفى كعيلات | B45: =#REF! -> 
A46: فايز الشبار | B46: =#REF! -> 
A47: احمد هادي لذيل | B47: =#REF! -> 
A48: ادريس هشال | B48: =#REF! -> 
A49: يسلم هشال | B49: =#REF! -> 
A50: قعنون | B50: =#REF! -> 
A51: يسلم عبدالله مهدي | B51: =#REF! -> 
A52: سلمان عاتق هشال | B52: =#REF! -> 
A53: مختار لسود | B53: =#REF! -> 
A54: فضل لعمس | B54: =#REF! -> 
A55: صالح ابراهيم | B55: =#REF! -> 
A56: عبدالله صحرن | B56: =#REF! -> 
A57: موسى لهبع | B57: =#REF! -> 
A58: نايف دابي | B58: =#REF! -> 
A59: محمد علي خميس | B59: =#REF! -> 
A60: صبري المعلم | B60: =#REF! -> 
A61: محسن عاطف | B61: =#REF! -> 
A62: احمد جلهم | B62: =#REF! -> 
A63: محمد احمد لشاعر | B63: =#REF! -> 
A64: مالك لعمس | B64: =#REF! -> 
A65: عوض لشبط | B65: =#REF! -> 
A66: وليد مهدي حريمه | B66: =#REF! -> 
A67: وجدي لذيل | B67: =#REF! -> 
A68: مبارك خميس | B68: =#REF! -> 
A69: محمد منصر ملاقي | B69: =#REF! -> 
A70: عدنان خالد لهيف | B70: =#REF! -> 
A71: سعيد محمد الحميري
A72: عمر العاطفي
A73: ناصر عبدالواحد لهيف
A74: عبدالله باسرده
A75: علي سعيد دابي
A76: عقيل عبيد
A77: عبدالملك محمد عوض
A78: نبيل قسيبه
A79: عمر عيدروس
A80: رامي طعموس
A81: عبدالمجيد الوبر
A82: قاسم لهيف
A83: عبدالمحسن محمد عوض
A84: احمد عبدالحافض
A85: عبدالمحسن طاهر
A86: حيدر علي عوض
A87: عيسى صالح قسيبه
A88: عبدربه محمد سعيد
A89: الوالد
A90: انيس علي ابوبكر
A91: محسن ناصر قسيبه
A92: مفرق رضوم
A93: ابوبكر محسن
A94: العجره
A95: خالد جليجل | B95: =#REF! -> 
A96: منصر دجر | B96: =#REF! -> 
A97: صدام لعمس | B97: =#REF! -> 
A98: عبدالناصر علي مهدي | B98: =#REF! -> 
A99: محمد المقلوع | B99: =#REF! -> 
A100: ناصر خالد لهيف | B100: =#REF! -> 
A101: ناصر علي المصاب | B101: =#REF! -> 
A102: الامانات | B102: =#REF! -> 
A103: الخضر شيخ | B103: =#REF! -> 
A104: جمال عبدالناصر مهدي | B104: =#REF! -> 
A105: سليم دابي | B105: =#REF! -> 
A106: جروب فور | B106: =#REF! -> 
A107: الشرق مسعود | B107: =#REF! -> 
A108: الدين المصاب | B108: =#REF! -> 
A109: عيدروس العاطفي | B109: =#REF! -> 
A110: النجار
A111: ابوماجد دولار
A112: حازم
A113: انور العاطفي
A114: مهدي بامهيد
A115: سعيد حرفوف
A116: احمد لخزع
A117: فايز حرفوف
A118: العصار سعودي
A119: عبدالخالق المصاب
A120: عبدالواحد باحوارث
A121: هاني الوبر
A122: محسن احمد عبدالله بامعبد
A123: حسن المصاب
A124: عبدالرحمن السحم
A125: همام منصر السحم
A126: احمد عمر بامعبد
A127: عوض ناصر لعور
A128: رضوان محمد شبام
A129: محمد عاتق هشال
A1006: السعودي
... 1 more rows

Sheet غلام زيد
A1: =L1-M1 -> -816000 | L1: =SUM(D4:D500000) -> 2257000 | M1: =SUM(E4:E500000) -> 3073000
A3: حساب | B3: التاريخ | C3: البيان | D3: المبلغ عليه | E3: المبلغ له | F3: ملاحضه | K3: المتبقي
A4: غلام زيد | B4: 2019-11-28 | C4: المتبقي | D4: 535000 | K4: =D4-E4 -> 535000
A5: غلام زيد | B5: 2019-11-28 | C5: محمد زين قات | D5: 3000 | K5: =K4+D5-E5 -> 538000
A6: غلام زيد | B6: 2019-11-30 | C6: مالك عبدالسلام علي يعقوب | D6: 566000 | K6: =K5+D6-E6 -> 1104000
A7: غلام زيد | B7: 2019-12-01 | C7: محمد سعيد بامعلم 00 | D7: 300000 | K7: 1404000
A8: غلام زيد | B8: 12/01/2019 | C8: عبدالرحمن عمر عبدالرحمن باغويطه | D8: 28500 | K8: 1432500
A9: غلام زيد | B9: 2019-12-02T08:53:04.180 | C9: محمد غلام | E9: 2221000 | K9: -788500
A10: غلام زيد | B10: 2019-12-03T08:57:05.930 | C10: مالك عبدالسلام علي يعقوب | D10: 30000 | K10: -758500
A11: غلام زيد | B11: 2019-12-03T20:07:02.260 | C11: عمر بدر صالح هادي عبدالسيد | D11: 198000 | K11: -560500
A12: غلام زيد | B12: 2019-12-03T20:11:54.490 | C12: جمال عبدالناصر مهدي قسيبه | D12: 300000 | K12: -260500
A13: غلام زيد | B13: 2019-12-07T17:55:12.700 | C13: صاحب الشيول | D13: 35000 | K13: -225500
A14: غلام زيد | B14: 2019-12-07T19:22:39.100 | C14: محمد منصر ملاقي | E14: 44000
A15: غلام زيد | B15: 2019-12-10T17:55:16.740 | C15: صدقي | D15: 8000
A16: غلام زيد | B16: 2019-12-10T19:37:23.210 | C16: سالم علي لهيف | E16: 163000
A17: غلام زيد | B17: 2019-12-11T11:08:49.290 | C17: عيسى | D17: 5000
A18: غلام زيد | B18: 2019-12-14T16:48:18.270 | C18: ناصر عبدالواحد | E18: 20000
A19: غلام زيد | B19: 2019-12-14T20:31:36.450 | C19: صالح عبدالله عوض لذيل | D19: 40000
A20: غلام زيد | B20: 2019-12-14T20:32:16.120 | C20: نقد فوق ال750 | D20: 50000
A21: غلام زيد | B21: 2019-12-15T11:10:49.600 | C21: حسين القصاع | D21: 5000
A22: غلام زيد | B22: 2019-12-18T10:32:12.210 | C22: عيسى | E22: 40000
A23: غلام زيد | B23: 2019-12-18T19:26:57.030 | C23: نوح | E23: 569000
A24: غلام زيد | B24: 2019-12-19T10:03:56.910 | C24: عيسى / عوض الدعمكي | E24: 16000
A25: غلام زيد | B25: 2019-12-22T19:39:33.470 | C25: صادق | D25: 2500
A26: غلام زيد | B26: 2019-12-23T08:48:44.440 | C26: عبدالله احمد سالم لشدف | D26: 44000
A27: غلام زيد | B27: 2019-12-24T19:25:26.660 | C27: معاذ | D27: 20000
A28: غلام زيد | B28: 2019-12-24T20:29:26.090 | C28: نبيل طيب | D28: 87000
... 1 more rows

Sheet يوسف سعيد حرفوف
A1: =L1-M1 -> 268050 | L1: =SUM(D4:D500000) -> 2236500 | M1: =SUM(E4:E500000) -> 1968450
A3: حساب | B3: التاريخ | C3: البيان | D3: المبلغ عليه | E3: المبلغ له | F3: ملاحضه | K3: المتبقي
A4: يوسف سعيد حرفوف | B4: 2019-11-28 | C4: المتبقي | D4: 0 | K4: =D4-E4 -> 0
A5: يوسف سعيد حرفوف | B5: 2019-11-30 | C5: احمد سعيد عبدالله قبقب بامسلم | D5: 214000 | K5: =K4+D5-E5 -> 214000
A6: يوسف سعيد حرفوف | B6: 2019-11-30 | C6: زكريا محمد عوض لشاعر | D6: 40000
A7: يوسف سعيد حرفوف | B7: 2019-12-08T18:20:00.320 | C7: نقد | E7: 200000
A8: يوسف سعيد حرفوف | B8: 2019-12-10T06:42:41.910 | C8: محمد خميس | E8: 82500
A9: يوسف سعيد حرفوف | B9: 2019-12-11T21:19:11.220 | C9: عاصم عادل علي مصنع | D9: 501000
A10: يوسف سعيد حرفوف | B10: 2019-12-11T21:21:14.340 | C10: باسمه | E10: 133200
A11: يوسف سعيد حرفوف | B11: 2019-12-11T21:21:36.090 | C11: نصر خميس محمد عبدالله حرفوف | E11: 39750
A12: يوسف سعيد حرفوف | B12: 2019-12-12T11:38:43.740 | C12: احمد عبدالله قبقب 00 | D12: 180500
A13: يوسف سعيد حرفوف | B13: 2019-12-12T11:39:03.820 | C13: عبدالله ناصر سعيد باسرده | D13: 200500
A14: يوسف سعيد حرفوف | B14: 2019-12-14 | C14: عمر علي عمر محمد صيمع | D14: 30000
A15: يوسف سعيد حرفوف | B15: 2019-12-15 | C15: نقد | E15: 1000000
A16: يوسف سعيد حرفوف | B16: 2019-12-15T19:31:32.740 | C16: عادل الشرعبي | D16: 30000
A17: يوسف سعيد حرفوف | B17: 2019-12-16T11:26:42.140 | C17: صلاح علي ناصر العضمي | D17: 15500
A18: يوسف سعيد حرفوف | B18: 2019-12-17T08:52:20.730 | C18: سلمان عاتق | D18: 250000
A19: يوسف سعيد حرفوف | B19: 2019-12-17T08:54:01.270 | C19: عبدالخالق المصاب | E19: 500000
A20: يوسف سعيد حرفوف | B20: 2019-12-17T19:38:15.750 | C20: عادل الشرعبي | D20: 20000
A21: يوسف سعيد حرفوف | B21: 2019-12-20T18:30:41.990 | C21: عادل /عبدالله محمد قاسم المظفري | D21: 60500
A22: يوسف سعيد حرفوف | B22: 2019-12-20T18:32:24.910 | C22: عادل / محفوظ محمد انعم 00 | D22: 41500
A23: يوسف سعيد حرفوف | B23: 2019-12-22T08:36:35.060 | C23: جمال خالد عوض باحشوان | D23: 501000
A24: يوسف سعيد حرفوف | B24: 2019-12-22T21:02:17.310 | C24: غلاق حق فايز | E24: 13000
A25: يوسف سعيد حرفوف | B25: 2019-12-24T08:42:43.370 | C25: شوقي احمد عبيد الاحمدي | D25: 152000
... 1 more rows

Sheet عادل غالب
A1: =L1-M1 -> -544000 | L1: =SUM(D4:D500000) -> 3500000 | M1: =SUM(E4:E500000) -> 4044000
A3: حساب | B3: التاريخ | C3: البيان | D3: المبلغ عليه | E3: المبلغ له | F3: ملاحضه | K3: المتبقي
A4: عادل غالب | B4: 2019-11-28 | C4: المتبقي | D4: 300000 | K4: =D4-E4 -> 300000
A5: عادل غالب | B5: 2019-12-04T11:31:38.250 | C5: راتبه | E5: 49650 | K5: =K4+D5-E5 -> 250350
A6: عادل غالب | B6: 2019-12-05T16:46:29.590 | C6: نقد | E6: 500000
A7: عادل غالب | B7: 2019-12-07T09:38:55.590 | C7: صدام | D7: 800000
A8: عادل غالب | B8: 2019-12-09T20:52:03.210 | C8: باسمه | D8: 100000 | E8: 550350
A9: عادل غالب | B9: 2019-12-14T10:39:19.560 | C9: صدام | D9: 1300000
A10: عادل غالب | B10: 2019-12-14T10:39:29.850 | C10: نقد | E10: 900000
A11: عادل غالب | B11: 2019-12-22T08:43:39.940 | C11: باسمه | E11: 1485000
A12: عادل غالب | B12: 2019-12-23T08:47:35.370 | C12: ناصر محمد علي قنان | D12: 1000000
A13: عادل غالب | B13: 2019-12-23T18:22:49.250 | C13: من صدام | E13: 11000
A14: عادل غالب | B14: 2019-12-25T09:08:02 | C14: صالح علي محمد المصاب | E14: 500000
A15: عادل غالب | B15: 2019-12-25T09:11:22.460 | C15: فضل | E15: 40000
A16: عادل غالب | B16: 2019-12-25T09:11:33.530 | C16: يسلم هشال | E16: 8000
... 1 more rows

Sheet هادي يسلم
A1: =L1-M1 -> 339200 | L1: =SUM(D4:D500000) -> 1168200 | M1: =SUM(E4:E500000) -> 829000
A3: حساب | B3: التاريخ | C3: البيان | D3: المبلغ عليه | E3: المبلغ له | F3: ملاحضه | K3: المتبقي
A4: هادي يسلم | B4: 2019-11-29 | C4: اغلاق الحساب | D4: 39000 | K4: =D4-E4 -> 39000
A5: هادي يسلم | B5: 2019-11-29 | C5: نقد | E5: 25000 | K5: =K4+D5-E5 -> 14000
A6: هادي يسلم | B6: 2019-11-29 | C6: اصيل | E6: 18600 | K6: =K5+D6-E6 -> -4600
A7: هادي يسلم | B7: 2019-11-29 | C7: احمد سعيد قبقب | D7: 500700 | K7: 496100
A8: هادي يسلم | B8: 2019-12-02T09:33:52.890 | C8: نقد | E8: 117000 | K8: 379100
A9: هادي يسلم | B9: 2019-12-09T20:39:18.980 | C9: عصام مهدي | E9: 7000 | K9: 372100
A10: هادي يسلم | B10: 2019-12-09T20:39:36.670 | C10: مجاهد الشبار | E10: 30000 | K10: 342100
A11: هادي يسلم | B11: 2019-12-09T20:56:46.810 | C11: منير عارف | E11: 6000 | K11: 336100
A12: هادي يسلم | B12: 2019-12-10T17:24:39.780 | C12: من هايل | E12: 4000 | K12: 332100
A13: هادي يسلم | B13: 2019-12-10T19:51:52.470 | C13: نقد | E13: 100000 | K13: 232100
A14: هادي يسلم | B14: 2019-12-10T19:57:50.880 | C14: مقداد | E14: 16500 | K14: 215600
A15: هادي يسلم | B15: 2019-12-12T11:28:48.400 | C15: محمد قوصر | E15: 2000 | K15: 213600
A16: هادي يسلم | B16: 2019-12-14T16:51:21.600 | C16: سالم محمد سالم لسود | E16: 20000 | K16: 193600
A17: هادي يسلم | B17: 2019-12-15T17:51:41.760 | C17: نقد | E17: 295000 | K17: -101400
A18: هادي يسلم | B18: 2019-12-15 | C18: رصيد | E18: 2300 | K18: -103700
A19: هادي يسلم | B19: 2019-12-18T08:52:56.870 | C19: نقد | E19: 50000
A20: هادي يسلم | B20: 2019-12-18T11:20:14.110 | C20: قبقب | D20: 501000
A21: هادي يسلم | B21: 2019-12-19T09:51:18.550 | C21: حازم | E21: 12500
A22: هادي يسلم | B22: 2019-12-19T10:25:43.350 | C22: محسن مهدي المعزف | E22: 7000
A23: هادي يسلم | B23: 2019-12-23T11:18:25.850 | C23: هايل | E23: 3000
A24: هادي يسلم | B24: 2019-12-24T08:33:24.630 | C24: مقداد صالح محمد منصور القشعوري | D24: 50000
A25: هادي يسلم | B25: 2019-12-25T08:32:17.470 | C25: علا صالح احمد عتش | D25: 29000
A26: هادي يسلم | B26: 2019-12-25T08:35:30.460 | C26: فوزي يسلم عوض بانارين | D26: 48500
A27: هادي يسلم | B27: 2019-12-25T09:05:34.050 | C27: عبدالناصر علي مهدي | E27: 8600
A28: هادي يسلم | B28: 2019-12-25T10:03:36.370 | C28: صالح ملاقي | E28: 7500
A29: هادي يسلم | B29: 2019-12-25T10:03:48.200 | C29: محمد ناصر الشبار | E29: 2000
A30: هادي يسلم | B30: 2019-12-25T16:15:13.720 | C30: نقد | E30: 95000
... 1 more rows
